fUSD/lending_fUSD_20240713
["ID","MTS","AMOUNT","RATE_DAILY","PERIOD"]
[331938923,1720877438847,-500.0,0.00013969,2]
[331938924,1720877438856,-500.0,0.00013969,2]
[331938925,1720877438866,-389.13322869,0.00013969,2]
[331938926,1720877438875,-645.28264739,0.00013969,2]
[331938927,1720877438885,-500.0,0.00013969,2]
[331938928,1720877438895,-511.59561152,0.00013969,2]
[331938929,1720877438904,-151.86,0.00013969,2]
[331938930,1720877438914,-290.17,0.00013969,2]
[331938931,1720877438924,-500.0,0.00013969,2]
[331938932,1720877438933,-500.0,0.00013969,2]
[331938933,1720877438943,-500.0,0.00013969,2]
[331938934,1720877438953,-500.0,0.00013969,2]
[331938935,1720877438963,-500.0,0.00013969,2]
[331938936,1720877438973,-792.01,0.00013969,2]
[331938937,1720877438983,-510.5946521,0.00013969,2]
[331938938,1720877438992,-246.46,0.00013969,2]
[331938939,1720877439001,-192.07215388,0.00013969,2]
[331938940,1720877439012,-142365.41051798,0.0001397,2]
[331938941,1720877439026,-31825.44,0.0001397,2]
[331938947,1720877439563,-360.29,0.00013815,2]
[331938948,1720877439575,-239.99013952,0.00013815,2]
[331938949,1720877439584,-1289.55537257,0.000139,2]
[331938950,1720877439593,-18118.28840011,0.0001397,2]
[331938951,1720877439606,-2942.65,0.0001397,2]
[331938952,1720877439617,-83112.26971845,0.0001397,2]
[331938953,1720877439626,-2000.0,0.00013973,3]
[331938954,1720877439635,-192.82396505,0.00013974,2]
[331938955,1720877439645,-642.85006459,0.00013974,2]
[331938956,1720877439654,-500.0,0.00013974,2]
[331938957,1720877439664,-500.0,0.00013974,2]
[331938958,1720877439673,-500.0,0.00013974,2]
[331938959,1720877439682,-500.0,0.00013974,2]
[331938960,1720877439691,-649.99823882,0.00013974,2]
[331938961,1720877439701,-500.0,0.00013974,2]
[331938962,1720877439711,-500.0,0.00013974,2]
[331938963,1720877439722,-500.0,0.00013974,2]
[331938964,1720877439734,-619.0,0.00013975,2]
[331938965,1720877439743,-809.0,0.00013975,2]
[331938966,1720877439753,-444.0,0.00013975,2]
[331938967,1720877439763,-449.0,0.00013975,2]
[331938968,1720877439772,-1990.0,0.00013975,2]
[331938969,1720877439782,-541.79,0.00013975,2]
[331938970,1720877439791,-3277.0,0.00013975,2]
[331938971,1720877439802,-934.447,0.00013975,2]
[331938972,1720877439811,-5183.0,0.00013975,2]
[331938973,1720877439821,-5818.0,0.00013975,2]
[331938974,1720877439830,-361.0,0.00013975,2]
[331938975,1720877439839,-1832.0,0.00013975,2]
[331938976,1720877439850,-1000.0,0.00013986,2]
[331938977,1720877439863,-1000.0,0.00013986,2]
[331938978,1720877439873,-1000.0,0.00013986,2]
[331938979,1720877439883,-1000.0,0.00013986,2]
[331938980,1720877439892,-1000.0,0.00013986,2]
[331938981,1720877439902,-1000.0,0.00013986,2]
[331938982,1720877439912,-1000.0,0.00013986,2]
[331938983,1720877439923,-1000.0,0.00013986,2]
[331938984,1720877439932,-1000.0,0.00013986,2]
[331938985,1720877439944,-1000.0,0.00013986,2]
[331938986,1720877439956,-1000.0,0.00013986,2]
[331938987,1720877439968,-1000.0,0.00013986,2]
[331938988,1720877439978,-1000.0,0.00013986,2]
[331938989,1720877439988,-1000.0,0.00013986,2]
[331938990,1720877439998,-1000.0,0.00013986,2]
[331938991,1720877440009,-1000.0,0.00013986,2]
[331938992,1720877440019,-1000.0,0.00013986,2]
[331938993,1720877440030,-1000.0,0.00013986,2]
[331938994,1720877440040,-1000.0,0.00013986,2]
[331938995,1720877440051,-1000.0,0.00013986,2]
[331938996,1720877440060,-1000.0,0.00013986,2]
[331938997,1720877440069,-1000.0,0.00013986,2]
[331938998,1720877440079,-1000.0,0.00013986,2]
[331938999,1720877440088,-1000.0,0.00013986,2]
[331939000,1720877440097,-1000.0,0.00013986,2]
[331939001,1720877440106,-1000.0,0.00013986,2]
[331939002,1720877440116,-1000.0,0.00013986,2]
[331939003,1720877440125,-500.0,0.00013989,2]
[331939004,1720877440134,-739.14,0.00013989,2]
[331939005,1720877440143,-291.61730771,0.00013989,2]
[331939006,1720877440153,-347.0,0.0001399,2]
[331939007,1720877440162,-3044.12,0.00013997,2]
[331939008,1720877440171,-500.0,0.00013997,2]
[331939009,1720877440181,-569.43169302,0.00013997,2]
[331939010,1720877440190,-3918.67348824,0.00013999,2]
[331939011,1720877440199,-1009.5161,0.00013999,2]
[331939012,1720877440209,-235.58631778,0.00013999,2]
[331939013,1720877440218,-163.91155174,0.00013999,2]
[331939014,1720877440227,-566.00737111,0.00013999,2]
[331939015,1720877440237,-505.76,0.00013999,2]
[331939016,1720877440246,-181.4045559,0.00013999,2]
[331939017,1720877440256,-504.36598859,0.00013999,2]
[331939018,1720877440265,-500.0,0.00013999,2]
[331939019,1720877440274,-500.0,0.00013999,2]
[331939020,1720877440283,-500.0,0.00013999,2]
[331939021,1720877440293,-563.63758368,0.00013999,2]
[331939022,1720877440303,-956.96064347,0.00013999,5]
[331939023,1720877440314,-500.0,0.00013999,2]
[331939024,1720877440323,-500.0,0.00013999,2]
[331939025,1720877440332,-400.0,0.00013999,2]
[331939026,1720877440343,-500.0,0.00013999,2]
[331939027,1720877440354,-474.76,0.00013999,2]
[331939028,1720877440364,-500.0,0.00013999,2]
[331939029,1720877440373,-500.0,0.00013999,2]
[331939030,1720877440383,-376.87,0.00013999,2]
[331939031,1720877440392,-531.81094113,0.00013999,2]
[331939032,1720877440403,-613.0,0.00014,2]
[331939033,1720877440412,-82141.64803671,0.00014,2]
[331939034,1720877440424,-727.40483639,0.00014,2]
[331939035,1720877440435,-682.5634499,0.00014,2]
[331939036,1720877440451,-632.25999977,0.00014,2]
[331939037,1720877440462,-643.23488832,0.00014,2]
[331939041,1720877442400,-1200.0,0.00013705,2]
[331939043,1720877442410,-2062.44251899,0.00014,2]
[331939046,1720877442422,-3819.34239537,0.00014,2]
[331939049,1720877442433,-12973.483531,0.00014,2]
[331939052,1720877442443,-301.88012184,0.00014,2]
[331939068,1720877443633,-1660.0,0.00013705,2]
[331939069,1720877443643,-38806.41198547,0.00014,2]
[331939070,1720877443652,-38975.17586603,0.00014,2]
[331939071,1720877443664,-3244.0398333,0.00014,2]
[331939072,1720877443675,-1668.02297108,0.00014,2]
[331939073,1720877443688,-5579.18028061,0.00014,2]
[331939074,1720877443699,-290187.90082591,0.00014,2]
[331939075,1720877443713,-579.35,0.00014,2]
[331939093,1720877445510,-600.28013952,0.00013829,2]
[331939094,1720877445520,-579.68928284,0.00013999,2]
[331939095,1720877445530,-552.0,0.00014,2]
[331939096,1720877445540,-1068.24719202,0.00014,2]
[331939097,1720877445592,-11182.99173202,0.00014,2]
[331939098,1720877445604,-4112.131445,0.00014,2]
[331939102,1720877446407,-5892.9,0.00014,2]
[331939103,1720877446419,-3812.8620695,0.00014,2]
[331939104,1720877446430,-500.84387595,0.00014,2]
[331939105,1720877446442,-12115.36860853,0.00014,2]
[331939106,1720877446453,-261.50644919,0.00014,2]
[331939107,1720877446465,-462.43344098,0.00014,2]
[331939108,1720877446477,-1348.24207892,0.00014,2]
[331939109,1720877446488,-2609.99752265,0.00014,2]
[331939110,1720877446500,-1246.58900404,0.00014,2]
[331939111,1720877446511,-508.5,0.00014,2]
[331939112,1720877551815,166.95,0.00010362,2]
[331939122,1720877590087,235901.97521835,0.00010362,2]
[331939123,1720877599122,7560.61129184,0.00010362,2]
[331939125,1720877646396,159.09090106,0.0001116,2]
[331939126,1720877678079,75901.56668295,0.00010362,2]
[331939127,1720877678177,1054.13185083,0.00010362,2]
[331939139,1720877756237,152953.07824979,0.00011199,2]
[331939140,1720877756567,644.51027312,0.00011199,2]
[331939144,1720877827364,560.15184306,0.00011199,2]
[331939146,1720877835016,156.85427679,0.00011199,2]
[331939147,1720877856684,159.42080381,0.00011199,2]
[331939148,1720877860333,283.53670071,0.00011199,2]
[331939149,1720877863696,155.10723618,0.00011199,2]
[331939150,1720877866976,159.15215138,0.00011199,2]
[331939152,1720877870677,626.23900531,0.00011199,2]
[331939153,1720877874860,644.38,0.00010869,2]
[331939154,1720877875770,250.39433972,0.00011199,2]
[331939155,1720877901587,1000.0,0.00012,120]
[331939156,1720877936441,155.0,0.00011199,2]
[331939159,1720877946639,1643.3148,0.00011159,2]
[331939162,1720878015497,1000.0,0.00023,120]
[331939165,1720878065639,14408.57130007,0.00011199,2]
[331939171,1720878135106,9444.81,0.00011199,2]
[331939173,1720878159220,9239.5160788,0.00011199,2]
[331939181,1720878265035,1000.0,0.00025,60]
[331939186,1720878305218,483.62526826,0.00011199,2]
[331939195,1720878367652,8892.57417821,0.00011199,2]
[331939197,1720878389677,612.16,0.00010578,2]
[331939200,1720878414806,6694.9460974,0.00011199,2]
[331939220,1720878431168,7557.69022854,0.00011199,2]
[331939222,1720878434959,15940.16098419,0.00011199,2]
[331939224,1720878466511,454.81841727,0.00011199,2]
[331939226,1720878503825,20335.16391521,0.00011199,2]
[331939236,1720878523837,158.75541604,0.00011199,2]
[331939241,1720878536598,27527.0,0.00010997,2]
[331939243,1720878539027,158.75541604,0.00011199,2]
[331939245,1720878546686,290.83715981,0.00011199,2]
[331939275,1720878584231,-300.0,0.00011259,2]
[331939276,1720878584269,-1000.0,0.0001126,2]
[331939277,1720878584306,-500.0,0.0001126,2]
[331939278,1720878584343,-500.0,0.0001126,2]
[331939279,1720878584379,-530.48620865,0.0001126,2]
[331939280,1720878596957,18791.89075367,0.00011199,2]
[331939281,1720878602861,2125.17772658,0.00011199,2]
[331939293,1720878631611,-69.51379135,0.0001126,2]
[331939294,1720878631621,-500.0,0.0001126,2]
[331939295,1720878631630,-500.0,0.0001126,2]
[331939296,1720878631639,-420.24313813,0.0001126,2]
[331939297,1720878631651,-679.75686187,0.0001126,2]
[331939298,1720878631661,-1000.0,0.00012,2]
[331939299,1720878631671,-37.19356674,0.00012055,2]
[331939300,1720878631682,-112.80643326,0.00012055,2]
[331939301,1720878631692,-600.0,0.00012082,2]
[331939302,1720878631701,-170.74351674,0.00012082,2]
[331939303,1720878631713,-846.47,0.00012082,2]
[331939304,1720878631724,-82.78648326,0.00012082,2]
[331939305,1720878631734,-250.0,0.0001223,2]
[331939306,1720878631743,-17.44351664,0.00012272,2]
[331939307,1720878631759,-282.55648336,0.00012272,2]
[331939308,1720878631768,-694.13612711,0.00012273,2]
[331939309,1720878631780,-635.97483763,0.00012273,2]
[331939310,1720878631791,-386.97857912,0.00012273,2]
[331939311,1720878631803,-236.0495083,0.00012273,2]
[331939312,1720878631812,-2333.37501314,0.00012273,2]
[331939313,1720878631822,-327.90550562,0.00012314,2]
[331939314,1720878632057,-3228.76449438,0.00012314,2]
[331939315,1720878632067,-200.0,0.00012334,2]
[331939316,1720878632077,-300.0,0.00012369,2]
[331939317,1720878632086,-2776.75195119,0.00012375,2]
[331939318,1720878632098,-19260.14705243,0.00012375,2]
[331939319,1720878632109,-10163.87099638,0.00012375,2]
[331939320,1720878632118,-150.0,0.00012415,2]
[331939321,1720878632128,-7877.33,0.00012416,2]
[331939322,1720878632138,-160.0,0.00012479,2]
[331939323,1720878632147,-712.62,0.00012518,2]
[331939324,1720878632160,-250.0,0.00012531,2]
[331939325,1720878632170,-248.81,0.00012595,2]
[331939326,1720878632179,-696.38,0.00012595,2]
[331939337,1720878632369,-499.99,0.00012595,2]
[331939338,1720878632379,-1451.7833479,0.00012628,2]
[331939339,1720878632391,-2637.1966521,0.00012628,2]
[331939340,1720878632401,-3896.69,0.00012659,2]
[331939341,1720878632412,-799.66,0.00012744,2]
[331939342,1720878632421,-2839.90259902,0.00012759,2]
[331939343,1720878632431,-872.0,0.00012765,2]
[331939344,1720878632440,-612.16,0.00012842,2]
[331939345,1720878632449,-216.82,0.00012864,2]
[331939346,1720878632459,-169.01,0.00012883,2]
[331939347,1720878632469,-15.62449419,0.00012904,2]
[331939348,1720878632489,-584.37550581,0.00012904,2]
[331939349,1720878632499,-500.0,0.00012904,2]
[331939350,1720878632508,-1100.0,0.00012904,2]
[331939351,1720878632518,-1000.0,0.00013,2]
[331939352,1720878632527,-1250.0,0.00013,2]
[331939353,1720878632536,-962.17,0.00013041,2]
[331939354,1720878632546,-164.87,0.00013178,2]
[331939355,1720878632555,-424.89,0.00013178,2]
[331939356,1720878632565,-424.89,0.00013178,2]
[331939357,1720878632574,-309.26,0.00013178,2]
[331939358,1720878632584,-424.89,0.00013178,2]
[331939359,1720878632593,-424.89,0.00013178,2]
[331939360,1720878632603,-424.89,0.00013178,2]
[331939361,1720878632613,-424.89,0.00013178,2]
[331939362,1720878632622,-424.89,0.00013178,2]
[331939363,1720878632632,-424.89,0.00013178,2]
[331939364,1720878632643,-424.89,0.00013178,2]
[331939365,1720878632654,-420.0,0.00013468,2]
[331939366,1720878632664,-627.31449419,0.00013472,2]
[331939367,1720878632675,-1575.90182279,0.00013472,2]
[331939368,1720878632685,-1099.64745194,0.00013472,2]
[331939369,1720878632695,-120.15399916,0.00013508,2]
[331939372,1720878637585,-134.84600084,0.00013508,2]
[331939373,1720878637594,-357.82799481,0.00013516,2]
[331939374,1720878637604,-155.0,0.00013574,2]
[331939375,1720878637615,-367.11383788,0.00013574,2]
[331939376,1720878637624,-158.75541604,0.00013574,2]
[331939377,1720878637634,-280.44086817,0.00013574,2]
[331939378,1720878637644,-202.47730064,0.00013574,2]
[331939379,1720878637655,-290.72672763,0.00013574,2]
[331939380,1720878637664,-250.0,0.00013699,2]
[331939381,1720878637673,-4128.65,0.00013699,2]
[331939382,1720878637682,-418.83,0.00013699,2]
[331939383,1720878637692,-1031.29718519,0.00013699,2]
[331939384,1720878637703,-48.97281481,0.00013699,2]
[331939385,1720878637714,-232.0,0.0001372,2]
[331939386,1720878637723,-600.0,0.00013726,2]
[331939387,1720878637733,-1100.0,0.00013726,2]
[331939388,1720878637742,-2565.61009779,0.00013736,2]
[331939389,1720878637757,-3396.25501358,0.00013736,2]
[331939390,1720878637769,-758.11221771,0.00013736,2]
[331939391,1720878637838,-464.81408718,0.00013736,2]
[331939392,1720878637849,-987.45743925,0.00013736,2]
[331939393,1720878637861,-265.615,0.00013736,2]
[331939394,1720878637951,-4374.64093908,0.00013736,2]
[331939395,1720878637961,-517.1995,0.0001377,2]
[331939396,1720878637970,-24081.7526,0.0001377,2]
[331939397,1720878637979,-3308.7826,0.00013779,2]
[331939399,1720878637989,-434.46153411,0.0001379,2]
[331939401,1720878637998,-434.46153402,0.0001379,2]
[331939402,1720878638007,-434.46153402,0.0001379,2]
[331939403,1720878638016,-434.46153402,0.0001379,2]
[331939404,1720878638025,-434.46153402,0.0001379,2]
[331939405,1720878638036,-177.52690118,0.00013799,2]
[331939406,1720878638045,-434.46153402,0.00013802,2]
[331939407,1720878638054,-232.0,0.0001381,2]
[331939408,1720878638064,-434.46153402,0.00013826,2]
[331939409,1720878638073,-434.46153402,0.00013851,2]
[331939410,1720878638082,-434.46153402,0.00013875,2]
[331939411,1720878638091,-500.0,0.00013879,2]
[331939412,1720878638100,-500.0,0.00013879,2]
[331939413,1720878638109,-500.0,0.00013879,2]
[331939414,1720878638119,-500.0,0.00013879,2]
[331939415,1720878638128,-507.33706798,0.00013879,2]
[331939416,1720878638137,-500.0,0.00013879,2]
[331939418,1720878638147,-500.0,0.00013879,2]
[331939419,1720878638156,-500.0,0.00013879,2]
[331939420,1720878638165,-500.0,0.00013879,2]
[331939421,1720878638174,-500.0,0.00013879,2]
[331939422,1720878638183,-500.0,0.00013879,2]
[331939423,1720878638192,-500.0,0.00013879,2]
[331939424,1720878638201,-512.03524658,0.00013879,2]
[331939425,1720878638210,-500.0,0.00013879,2]
[331939426,1720878638219,-500.0,0.00013879,2]
[331939427,1720878638230,-500.0,0.00013879,2]
[331939428,1720878638239,-345.57413891,0.00013879,2]
[331939429,1720878638251,-154.42586109,0.00013879,2]
[331939430,1720878638260,-2198.91413891,0.00013879,2]
[331939432,1720878639702,-760.03586109,0.00013879,2]
[331939433,1720878639712,-500.0,0.00013879,2]
[331939434,1720878639722,-500.0,0.00013879,2]
[331939435,1720878639731,-500.0,0.00013879,2]
[331939436,1720878639741,-500.0,0.00013879,2]
[331939437,1720878639751,-500.0,0.00013879,2]
[331939438,1720878639762,-500.0,0.00013879,2]
[331939439,1720878639771,-500.0,0.00013879,2]
[331939440,1720878639780,-500.0,0.00013879,2]
[331939441,1720878639790,-500.0,0.00013879,2]
[331939442,1720878639800,-500.0,0.00013879,2]
[331939443,1720878639811,-500.0,0.00013879,2]
[331939444,1720878639820,-151.85528062,0.00013879,2]
[331939445,1720878639832,-308.94361421,0.00013879,2]
[331939446,1720878639843,-45.16738752,0.00013879,2]
[331939447,1720878639853,-505.45203293,0.00013879,2]
[331939448,1720878639863,-505.11383475,0.00013879,2]
[331939449,1720878639872,-508.91755329,0.00013879,2]
[331939450,1720878639883,-506.30283896,0.00013879,2]
[331939451,1720878639895,-500.0,0.00013879,2]
[331939452,1720878639906,-266.79331869,0.00013879,2]
[331939453,1720878639918,-233.20668131,0.00013879,2]
[331939454,1720878639927,-506.19928908,0.00013879,2]
[331939455,1720878639938,-508.28107663,0.00013879,2]
[331939456,1720878639948,-500.0,0.00013879,2]
[331939457,1720878639958,-505.46957938,0.00013879,2]
[331939458,1720878639970,-505.48534321,0.00013879,2]
[331939459,1720878639979,-238.21239882,0.00013879,2]
[331939460,1720878639988,-501.34675416,0.00013879,2]
[331939461,1720878639997,-505.72994659,0.00013879,2]
[331939462,1720878640007,-510.58575469,0.00013879,2]
[331939463,1720878640016,-529.33,0.00013879,2]
[331939464,1720878640025,-508.68086888,0.00013879,2]
[331939465,1720878640034,-574.2,0.00013879,2]
[331939466,1720878640044,-219.54645442,0.00013885,2]
[331939467,1720878640053,-219.54645437,0.00013887,2]
[331939468,1720878640062,-500.0,0.00013888,2]
[331939469,1720878640072,-200.0,0.00013888,2]
[331939470,1720878640082,-219.54645437,0.00013889,2]
[331939471,1720878640092,-627.40372994,0.00013889,2]
[331939472,1720878640102,-219.54645437,0.00013891,2]
[331939473,1720878640114,-219.54645437,0.00013894,2]
[331939474,1720878640123,-219.54645437,0.00013896,2]
[331939475,1720878640134,-219.54645437,0.00013898,2]
[331939476,1720878640145,-275.56259237,0.00013899,2]
[331939477,1720878640155,-1000.0,0.000139,2]
[331939478,1720878640165,-434.46153402,0.000139,2]
[331939479,1720878640175,-3093.30793832,0.000139,2]
[331939480,1720878640185,-320.26452091,0.000139,2]
[331939481,1720878640196,-219.54645437,0.000139,2]
[331939482,1720878640206,-9458.00008584,0.000139,2]
[331939483,1720878640215,-232.0,0.0001391,2]
[331939484,1720878640225,-509.55248718,0.00013933,2]
[331939486,1720878640235,-532.84584703,0.00013933,2]
[331939487,1720878640245,-601.73144146,0.00013933,2]
[331939488,1720878640254,-500.0,0.00013933,2]
[331939489,1720878640263,-623.91990161,0.00013933,2]
[331939490,1720878640273,-700.88,0.00013933,2]
[331939491,1720878640282,-576.85963801,0.00013933,2]
[331939492,1720878640293,-578.91193699,0.00013933,2]
[331939493,1720878640303,-523.36,0.00013933,2]
[331939494,1720878640313,-500.0,0.00013933,2]
[331939495,1720878640322,-500.0,0.00013933,2]
[331939496,1720878640331,-565.26254846,0.00013933,2]
[331939497,1720878640341,-527.76881591,0.00013933,2]
[331939498,1720878640350,-573.11805833,0.00013933,2]
[331939499,1720878640359,-506.51176744,0.00013933,2]
[331939500,1720878640368,-629.77029179,0.00013933,2]
[331939501,1720878640378,-589.03597875,0.00013934,2]
[331939502,1720878640387,-500.0,0.00013934,2]
[331939503,1720878640396,-500.0,0.00013934,2]
[331939504,1720878640406,-500.0,0.00013934,2]
[331939505,1720878640415,-500.0,0.00013934,2]
[331939506,1720878640425,-500.0,0.00013934,2]
[331939507,1720878640434,-500.0,0.00013934,2]
[331939508,1720878640444,-500.0,0.00013934,2]
[331939509,1720878640453,-500.0,0.00013934,2]
[331939510,1720878640462,-500.0,0.00013934,2]
[331939511,1720878640471,-500.0,0.00013934,2]
[331939512,1720878640481,-500.0,0.00013934,2]
[331939513,1720878640490,-500.0,0.00013934,2]
[331939514,1720878640500,-500.0,0.00013934,2]
[331939515,1720878640509,-500.0,0.00013934,2]
[331939516,1720878640518,-2958.95,0.00013934,2]
[331939517,1720878640528,-500.0,0.00013934,2]
[331939518,1720878640538,-500.0,0.00013934,2]
[331939519,1720878640547,-500.0,0.00013934,2]
[331939520,1720878640556,-500.0,0.00013934,2]
[331939521,1720878640566,-500.0,0.00013934,2]
[331939522,1720878640576,-500.0,0.00013934,2]
[331939523,1720878640585,-500.0,0.00013934,2]
[331939524,1720878640595,-500.0,0.00013934,2]
[331939525,1720878640605,-500.0,0.00013934,2]
[331939526,1720878640614,-500.0,0.00013934,2]
[331939527,1720878640624,-507.60805387,0.00013934,2]
[331939528,1720878640634,-574.2,0.00013934,2]
[331939529,1720878640644,-1228.834838,0.00013973,2]
[331939530,1720878640653,-1014.71,0.00013973,3]
[331939531,1720878640663,-505.38787401,0.00013983,2]
[331939532,1720878640673,-500.0,0.00013984,2]
[331939533,1720878640682,-500.0,0.00013984,2]
[331939534,1720878640691,-500.0,0.00013984,2]
[331939535,1720878640701,-508.15424084,0.00013984,2]
[331939536,1720878640710,-509.67775641,0.00013984,2]
[331939537,1720878640721,-500.0,0.00013984,2]
[331939538,1720878640730,-505.32278749,0.00013984,2]
[331939539,1720878640740,-500.0,0.00013984,2]
[331939540,1720878640749,-505.48643416,0.00013984,2]
[331939541,1720878640758,-508.34471066,0.00013984,2]
[331939542,1720878640768,-500.0,0.00013984,2]
[331939543,1720878640778,-500.0,0.00013984,2]
[331939544,1720878640787,-609.08244383,0.00013984,2]
[331939545,1720878640796,-500.0,0.00013984,2]
[331939546,1720878640806,-618.38521026,0.00013984,2]
[331939547,1720878640816,-551.82642676,0.00013984,2]
[331939548,1720878640826,-500.0,0.00013984,2]
[331939549,1720878640836,-500.0,0.00013984,2]
[331939550,1720878640845,-539.80847611,0.00013984,2]
[331939551,1720878640855,-500.0,0.00013984,2]
[331939552,1720878640864,-500.0,0.00013984,2]
[331939553,1720878640874,-500.0,0.00013984,2]
[331939554,1720878640883,-804.44,0.00013984,2]
[331939555,1720878640893,-500.0,0.00013984,2]
[331939556,1720878640902,-3238.53,0.00013984,2]
[331939557,1720878640912,-500.0,0.00013984,2]
[331939558,1720878640922,-511.43959966,0.00013984,2]
[331939559,1720878640932,-1252.0,0.00013985,2]
[331939560,1720878640943,-304.447,0.00013985,2]
[331939561,1720878640952,-1830.0,0.00013985,2]
[331939562,1720878640962,-1660.0,0.00013985,2]
[331939563,1720878640971,-619.0,0.00013985,2]
[331939564,1720878640980,-809.0,0.00013985,2]
[331939565,1720878640990,-402.917,0.00013985,2]
[331939566,1720878640999,-449.0,0.00013985,2]
[331939567,1720878641008,-2378.0,0.00013985,2]
[331939568,1720878641018,-1355.0,0.00013985,2]
[331939569,1720878641028,-1991.0,0.00013985,2]
[331939570,1720878641038,-549.0,0.00013985,2]
[331939571,1720878641047,-3278.0,0.00013985,2]
[331939572,1720878641057,-5183.0,0.00013985,2]
[331939573,1720878641066,-5818.0,0.00013985,2]
[331939574,1720878641076,-1666.0,0.00013985,2]
[331939575,1720878641085,-1200.0,0.00013985,2]
[331939576,1720878641095,-150.197,0.00013985,2]
[331939577,1720878641105,-38292.0,0.00013985,2]
[331939578,1720878641114,-156.085,0.00013985,2]
[331939579,1720878641123,-150.302,0.00013985,2]
[331939580,1720878641133,-150.271,0.00013985,2]
[331939581,1720878641142,-1071.0,0.00013985,2]
[331939582,1720878641151,-557.09387278,0.00013988,2]
[331939583,1720878641162,-700.88,0.00013988,2]
[331939584,1720878641171,-500.0,0.00013988,2]
[331939585,1720878641181,-500.0,0.00013988,2]
[331939586,1720878641190,-601.89579038,0.00013989,2]
[331939587,1720878641199,-465.01578653,0.00013989,2]
[331939588,1720878641209,-484.97785236,0.00013989,2]
[331939589,1720878641218,-502.91001684,0.00013989,2]
[331939590,1720878641227,-500.0,0.00013989,2]
[331939591,1720878641238,-297.34853496,0.00013989,2]
[331939592,1720878641247,-465.43406769,0.00013989,2]
[331939593,1720878641257,-500.0,0.00013989,2]
[331939594,1720878641267,-356.10834323,0.00013989,2]
[331939595,1720878641276,-635.00549289,0.00013989,2]
[331939596,1720878641285,-500.0,0.00013989,2]
[331939597,1720878641299,-287.39004984,0.00013989,2]
[331939598,1720878641308,-500.0,0.00013989,2]
[331939599,1720878641318,-500.0,0.00013989,2]
[331939600,1720878641327,-2958.95,0.00013989,2]
[331939601,1720878641339,-500.0,0.00013989,2]
[331939602,1720878641349,-303.41,0.00013989,2]
[331939603,1720878641358,-449.70889337,0.00013989,2]
[331939604,1720878641369,-338.0767074,0.00013989,2]
[331939605,1720878641379,-555.56879152,0.00013989,2]
[331939606,1720878641389,-337.59325309,0.00013989,2]
[331939607,1720878641399,-500.0,0.00013989,2]
[331939608,1720878641408,-500.0,0.00013989,2]
[331939609,1720878641418,-520.16084977,0.00013989,2]
[331939610,1720878641427,-500.0,0.00013989,2]
[331939611,1720878641437,-574.2,0.00013989,2]
[331939612,1720878641446,-236.20898309,0.00013989,2]
[331939613,1720878641456,-296.78659241,0.00013989,2]
[331939614,1720878641465,-199.66200269,0.00013989,2]
[331939615,1720878641474,-232.0,0.0001399,2]
[331939616,1720878641483,-500.0,0.0001399,2]
[331939617,1720878641493,-500.0,0.0001399,2]
[331939618,1720878641502,-500.0,0.0001399,2]
[331939619,1720878641512,-36.03262099,0.0001399,2]
[331939620,1720878641526,-463.96737901,0.0001399,2]
[331939621,1720878641535,-1040.15,0.0001399,2]
[331939622,1720878641544,-115.08647099,0.0001399,2]
[331939623,1720878641562,-384.91352901,0.0001399,2]
[331939624,1720878641571,-500.0,0.0001399,2]
[331939625,1720878641581,-1205.99,0.0001399,2]
[331939626,1720878641591,-500.0,0.0001399,2]